bitfinex-derivatives/quotes_ETHF0:USTF0_20250518
["timestamp","ask_amount","ask_price","bid_price","bid_amount"]
[1747588339846,2.54026,2572.4,2572.3,1.7235]
[1747588340455,0.77729,2572.2,2572.1,3.5304]
[1747588340646,0.77729,2572.2,2572.1,5.2268]
[1747588340841,0.77723,2572.4,2572.2,0.77727]
[1747588341042,10.62262,2573.0,2572.3,3.2078]
[1747588341251,0.77719,2572.5,2572.4,1.6964]
[1747588341949,11.8878,2572.6,2572.1,3.5304]
[1747588342150,2.44644,2572.4,2572.2,0.77727]
[1747588342352,1.6692,2572.4,2572.2,2.59047]
[1747588343251,1.6692,2572.4,2572.3,0.77726]
[1747588343455,10.3492,2572.4,2572.3,2.59046]
[1747588343750,11.12642,2572.4,2572.3,1.8132]
[1747588344449,0.77722,2572.4,2572.3,2.59046]
[1747588344652,9.45722,2572.4,2572.3,2.59046]
[1747588345353,0.77721,2572.5,2572.4,0.77721]
[1747588345548,1.6692,2572.6,2572.5,0.77719]
[1747588345854,0.7772,2572.5,2572.4,5.21550993]
[1747588346347,0.7772,2572.5,2572.4,6.87500993]
[1747588346852,0.7772,2572.5,2572.4,6.09780993]
[1747588347051,2.6005,2572.5,2572.4,1.6595]
[1747588348053,2.6005,2572.5,2572.4,2.43672]
[1747588348557,8.679,2572.6,2572.5,0.77719]
[1747588348749,1.79,2572.7,2572.6,0.77716]
[1747588348950,9.45611,2572.8,2572.7,0.77099786]
[1747588349145,9.45611,2572.8,2572.7,2.48909786]
[1747588349344,4.9233,2572.9,2572.7,1.7181]
[1747588349545,5.70037,2572.9,2572.8,1.7181]
[1747588349744,16.08717,2572.9,2572.8,1.7181]
[1747588351262,12.66387,2572.9,2572.8,2.4952]
[1747588351453,12.66387,2572.9,2572.8,1.7181]
[1747588351653,9.45607,2572.9,2572.8,1.7181]
[1747588351859,2.57327,2573.0,2572.9,0.77707]
[1747588352162,0.77707,2572.9,2572.8,2.49518]
[1747588353865,0.77707,2572.9,2572.8,1.7181]
[1747588354060,0.77707,2572.9,2572.8,2.4952]
[1747588354364,0.77701,2573.2,2572.8,22.93173016]
[1747588354564,0.77701,2573.2,2573.0,3.2078]
[1747588354771,0.77697,2573.3,2573.2,0.77698]
[1747588354962,0.77697,2573.3,2573.1,10.40693015]
[1747588355162,11.55734332,2573.6,2573.2,6.89072015]
[1747588355464,0.77695,2573.4,2573.3,1.7411]
[1747588356061,0.77695,2573.4,2573.3,4.7991]
[1747588356763,0.77695,2573.4,2573.3,5.57605]
[1747588357057,0.77695,2573.4,2573.3,4.7991]
[1747588357262,0.77695,2573.4,2573.3,1.7411]
[1747588357880,0.77691,2573.5,2573.3,1.7411]
[1747588358170,5.2627,2573.6,2573.3,1.7411]
[1747588358569,8.677,2573.8,2573.4,4.36235655]
[1747588358767,0.77684,2573.7,2573.5,2.47627]
[1747588358966,6.8227,2573.9,2573.5,2.47627]
[1747588358967,0.77686,2573.6,2573.5,1.6994]
[1747588359364,0.77686,2573.6,2573.5,2.47629]
[1747588359969,8.677,2573.8,2573.6,0.77686]
[1747588360166,8.677,2573.8,2573.7,4.15943]
[1747588360473,9.4538,2573.8,2573.7,3.3826]
[1747588360971,0.7768,2573.8,2573.7,3.3826]
[1747588361876,2.4535,2573.8,2573.7,3.3826]
[1747588362173,0.7769,2573.5,2573.3,3.2078]
[1747588362371,0.77692,2573.4,2573.3,4.9491]
[1747588363271,0.77692,2573.4,2573.3,5.72605]
[1747588363473,0.77692,2573.4,2573.3,4.9491]
[1747588364175,0.77692,2573.4,2573.3,8.78405]
[1747588364468,0.77692,2573.4,2573.3,7.9273]
[1747588364873,0.77692,2573.4,2573.3,3.058]
[1747588365069,5.77692,2573.4,2573.3,3.058]
[1747588365275,0.77707,2572.9,2572.8,1.14587274]
[1747588365475,9.45307,2572.9,2572.8,1.14587274]
[1747588365678,8.676,2572.9,2572.8,3.58446274]
[1747588365879,9.45307,2572.9,2572.8,2.80737274]
[1747588366271,0.77707,2573.0,2572.8,3.58446274]
[1747588366476,9.45307,2572.9,2572.8,2.80737274]
[1747588366671,9.45307,2572.9,2572.8,3.58447274]
[1747588366879,0.77705,2573.0,2572.8,3.58447274]
[1747588367079,0.77707,2572.9,2572.8,4.51427274]
[1747588367282,3.98487,2572.9,2572.8,1.14587274]
[1747588367481,9.09707,2572.9,2572.8,1.14587274]
[1747588367681,0.77713,2572.7,2572.6,1.7197]
[1747588369179,2.43353,2572.7,2572.6,1.7197]
[1747588370184,9.43112,2572.8,2572.7,0.77713]
[1747588370784,0.77712,2572.8,2572.6,2.49685]
[1747588370981,4.23289,2572.9,2572.8,0.7771]
[1747588371184,0.7771,2572.8,2572.7,6.07499443]
[1747588371482,0.7771,2572.8,2572.7,1.7274]
[1747588374195,0.7771,2572.8,2572.7,2.50453]
[1747588374485,2.58749,2572.9,2572.8,0.7771]
[1747588374686,2.58749,2572.9,2572.8,2.5874]
[1747588375183,8.655,2573.1,2572.8,2.58739]
[1747588375385,0.77707,2573.0,2572.8,2.58739]
[1747588375582,0.77707,2573.0,2572.9,0.77707]
[1747588375779,0.77707,2573.0,2572.9,2.41857]
[1747588376090,0.77707,2573.0,2572.9,4.6995]
[1747588376685,2.45267,2573.0,2572.9,4.6995]
[1747588377282,2.45267,2573.0,2572.9,1.6415]
[1747588377587,0.77712,2572.8,2572.6,0.77714]
[1747588377777,0.77712,2572.8,2572.6,2.41864]
[1747588377982,0.77713,2572.7,2572.6,6.58338483]
[1747588378390,0.7771,2572.9,2572.7,0.77712]
[1747588378691,0.7771,2572.9,2572.8,1.7919]
[1747588379486,1.6756,2573.0,2572.8,1.7919]
[1747588379688,11.8628,2573.3,2572.8,14.6386033]
[1747588379888,12.63977,2573.3,2573.1,0.77699]
[1747588380091,12.63977,2573.3,2573.2,2.56888]
[1747588380388,3.2078,2573.3,2573.2,6.7685833]
[1747588380589,11.8628,2573.6,2573.4,0.77689]
[1747588380789,12.63966,2573.6,2573.5,1.7919]
[1747588380990,3.98466,2573.6,2573.5,2.56879]
[1747588381186,42.6151,2573.8,2573.5,2.56879]
[1747588381187,1.6775,2573.8,2573.6,0.77684]
[1747588381387,2.4543,2573.8,2573.7,3.4545]
[1747588381783,0.77689,2573.5,2573.4,1.7081]
[1747588382097,0.77689,2573.6,2573.5,0.77689]
[1747588382390,0.77689,2573.6,2573.5,1.6489]
[1747588383483,0.77692,2573.4,2573.3,3.3115]
[1747588384289,0.77701,2573.1,2573.0,1.14587274]
[1747588384490,0.777,2573.2,2573.0,1.92290274]
[1747588384692,0.777,2573.2,2573.1,1.7264]
[1747588385187,10.2881,2573.3,2573.1,1.7264]
[1747588385383,0.77698,2573.2,2573.1,1.7264]
[1747588385795,0.77701,2573.1,2573.0,1.14587274]
[1747588385992,2.48661,2573.1,2573.0,1.14587274]
[1747588386491,4.24211,2573.1,2573.0,1.14587274]
[1747588386692,12.1191,2573.1,2573.0,0.77704]
[1747588386999,0.77704,2573.0,2572.9,1.7264]
[1747588387686,12.89612,2573.1,2572.9,2.50347]
[1747588387892,11.14061,2573.1,2573.0,0.77704]
[1747588388090,1.7096,2573.1,2573.0,4.08804]
[1747588388292,10.2881,2573.3,2573.0,4.08802]
[1747588388495,2.41107,2573.3,2573.1,0.777]
[1747588388795,2.41107,2573.3,2573.2,1.6717]
[1747588388994,0.77701,2573.1,2573.0,3.4142]
[1747588389294,0.77701,2573.1,2573.0,3.311]
[1747588389487,0.77701,2573.1,2573.0,1.6717]
[1747588390489,11.9629,2573.3,2572.6,7.1538]
[1747588390695,0.77709,2572.9,2572.7,2.51401]
[1747588390993,3.3635,2573.0,2572.8,2.514]
[1747588391392,0.77707,2572.9,2572.8,2.514]
[1747588391593,4.14056,2573.0,2572.8,2.514]
[1747588392296,0.77707,2572.9,2572.8,1.7369]
[1747588392594,2.42137,2572.9,2572.8,1.7369]
[1747588392788,0.7771,2572.8,2572.7,0.77713]
[1747588392987,0.7771,2572.8,2572.7,1.7369]
[1747588393295,2.42139,2572.9,2572.7,2.51402]
[1747588393596,2.42139,2572.9,2572.7,1.7369]
[1747588393597,0.7771,2572.8,2572.7,1.7369]
[1747588393894,4.0423,2572.8,2572.7,1.7369]
[1747588394696,0.77713,2572.7,2572.6,3.2078]
[1747588394897,1.6324,2572.7,2572.6,5.69636]
[1747588395090,0.77712,2572.8,2572.6,5.69636]
[1747588395296,0.77706,2573.0,2572.9,0.77707]
[1747588395498,8.655,2573.0,2572.8,0.77709]
[1747588395792,9.43207,2573.0,2572.9,1.7114]
[1747588395997,8.655,2573.0,2572.9,2.48847]
[1747588396698,14.45443,2573.1,2573.0,0.77704]
[1747588396889,14.45443,2573.1,2573.0,2.46504]
[1747588397795,4.16703,2573.1,2573.0,2.46504]
[1747588399003,5.80743,2573.1,2573.0,2.46504]
[1747588399497,5.0304,2573.1,2573.0,2.46504]
[1747588399798,5.80741,2573.1,2573.0,2.46504]
[1747588402402,8.633,2573.3,2573.2,0.77698]
[1747588403094,8.633,2573.3,2573.2,2.42468]
[1747588403397,11.06082,2573.4,2573.3,0.77695]
[1747588403592,11.06082,2573.4,2572.9,5.15045]
[1747588403593,10.2839,2573.4,2572.9,3.2078]
[1747588403892,0.77699,2573.2,2573.1,0.77701]
[1747588404097,1.577,2573.3,2573.2,0.77698]
[1747588405089,0.77698,2573.2,2573.0,0.77702]
[1747588405397,0.77701,2573.1,2573.0,5.72737609]
[1747588405601,3.93251,2573.1,2573.0,4.07967609]
[1747588405798,0.77704,2573.0,2572.9,5.63036]
[1747588405999,1.7337,2573.0,2572.9,5.63036]
[1747588406198,2.51074,2573.0,2572.9,3.2078]
[1747588406395,1.7337,2573.0,2572.8,3.57066274]
[1747588406600,2.46957,2572.9,2572.8,3.57066274]
[1747588407299,2.46957,2572.9,2572.8,4.69597269]
[1747588407801,1.6925,2572.9,2572.8,4.69598269]
[1747588407996,2.46957,2572.9,2572.8,4.69598269]
[1747588408193,1.6925,2572.9,2572.8,3.04828269]
[1747588408394,1.6925,2572.9,2572.8,0.7771]
[1747588408593,3.4262,2572.9,2572.8,0.7771]
[1747588409405,4.20327,2572.9,2572.8,0.7771]
[1747588409600,3.4262,2572.9,2572.8,0.7771]
[1747588410701,4.20327,2572.9,2572.8,0.7771]
[1747588410901,3.4262,2572.9,2572.8,0.7771]
[1747588411294,8.633,2573.0,2572.9,0.77707]
[1747588411496,8.633,2573.0,2572.9,2.40757]
[1747588411803,8.633,2573.0,2572.9,1.6305]
[1747588412002,11.00874,2573.0,2572.9,1.6305]
[1747588412408,0.77707,2572.9,2572.8,0.77708]
[1747588412702,1.5987,2572.9,2572.8,0.77708]
[1747588413106,1.5987,2572.9,2572.8,1.90331689]
[1747588413604,2.37577,2572.9,2572.8,1.12623689]
[1747588413996,2.37577,2572.9,2572.8,1.90333689]
[1747588414201,5.43377,2572.9,2572.8,1.90333689]
[1747588414804,4.6567,2572.9,2572.8,0.7771]
[1747588415202,1.5987,2572.9,2572.8,0.7771]
[1747588415402,1.5785,2573.1,2573.0,0.77704]
[1747588415603,10.2115,2573.1,2573.0,0.77704]
[1747588416111,1.5785,2573.1,2573.0,0.77704]
[1747588416405,8.633,2573.1,2573.0,0.77704]
[1747588417105,9.41001,2573.1,2573.0,0.77704]
[1747588417312,9.41001,2573.1,2572.9,2.37895]
[1747588417509,0.77704,2573.0,2572.9,2.37895]
[1747588417809,2.42494,2573.0,2572.9,1.6019]
[1747588418009,1.6479,2573.0,2572.9,1.6019]
[1747588418209,2.42494,2573.0,2572.9,1.6019]
[1747588418507,2.42494,2573.0,2572.9,2.37897]
[1747588418705,1.6479,2573.0,2572.9,2.37897]
[1747588419011,2.42494,2573.0,2572.9,2.37897]
[1747588419210,2.42494,2573.0,2572.9,1.6019]
[1747588419714,2.42494,2573.0,2572.9,2.72881958]
[1747588420011,1.6479,2573.0,2572.9,3.50588958]
[1747588421305,2.42494,2573.0,2572.9,3.50588958]
[1747588421506,2.42494,2573.0,2572.9,1.12691958]
[1747588423014,2.42494,2573.0,2572.9,0.77707]
[1747588424310,0.77701,2573.2,2573.1,0.77701]
[1747588424516,11.07331,2573.2,2573.0,0.77703]
[1747588425015,0.77702,2573.1,2572.9,0.77707]
[1747588425214,0.77702,2573.1,2573.0,1.6765]
[1747588425408,8.633,2573.2,2573.0,1.6765]
[1747588425614,0.77701,2573.1,2573.0,2.45354]
[1747588426027,11.0733,2573.2,2573.1,0.77701]
[1747588426226,9.41,2573.2,2573.1,0.77701]
[1747588426424,8.633,2573.2,2573.1,0.77701]
[1747588426631,0.77701,2573.1,2573.0,1.6765]
[1747588427130,8.633,2573.2,2573.1,0.77701]
[1747588427721,2.43867,2573.3,2573.2,0.77698]
[1747588427928,10.2947,2573.3,2573.0,1.6765]
[1747588428124,0.77701,2573.1,2573.0,2.45353]
[1747588429334,0.86919003,2573.1,2573.0,2.45353]
[1747588429832,0.86919003,2573.1,2573.0,3.58026395]
[1747588430319,0.09218003,2573.1,2573.0,3.58026395]
[1747588430523,0.777,2573.2,2573.1,0.77699]
[1747588431936,0.77695,2573.4,2573.3,0.77694]
[1747588432120,0.77697,2573.3,2573.2,0.77697]
[1747588432326,0.77701,2573.2,2573.1,0.777]
[1747588433132,0.77703,2573.1,2573.0,0.77703]
[1747588433435,0.86921003,2573.1,2573.0,0.77704]
[1747588434637,1.71228003,2573.1,2573.0,0.77704]
[1747588434936,0.09218003,2573.1,2573.0,1.90394785]
[1747588435232,0.09218003,2573.1,2573.0,2.19154241]
[1747588435537,0.777,2573.2,2573.1,0.77701]
[1747588436434,9.37997,2573.3,2573.2,0.77698]
[1747588436736,0.77698,2573.2,2573.1,1.90390785]
[1747588438136,0.77698,2573.2,2573.1,1.12690785]
[1747588438339,2.42668,2573.2,2573.1,1.12690785]
[1747588439138,5.48468,2573.2,2573.1,1.12690785]
[1747588439336,0.77707,2572.9,2572.8,4.35367274]
[1747588439635,0.77707,2572.9,2572.8,5.13077274]
[1747588440239,1.73218003,2573.1,2572.8,4.35367274]
[1747588440537,2.41702,2573.1,2572.9,0.77705]
[1747588440735,1.64,2573.1,2573.0,0.77704]
[1747588441035,4.7907,2573.4,2572.8,4.35367274]
[1747588441240,9.37997,2573.3,2572.8,4.35367274]
[1747588441536,9.37997,2573.3,2573.2,0.77698]
[1747588442041,9.37997,2573.3,2573.1,0.77699]
[1747588442539,9.37997,2573.3,2573.2,0.77698]
[1747588442835,9.37997,2573.3,2573.1,0.77699]
[1747588443037,9.37997,2573.3,2573.2,0.77698]
[1747588443735,0.777,2573.2,2573.1,0.777]
[1747588444038,0.77703,2573.1,2573.0,0.77704]
[1747588444434,1.6865,2573.2,2573.1,0.77701]
[1747588444636,12.43797,2573.3,2573.2,0.77698]
[1747588444836,0.77701,2573.2,2572.9,4.49901447]
[1747588445138,0.77701,2573.2,2573.1,0.77701]
[1747588445541,8.603,2573.3,2573.1,0.77701]
[1747588445733,0.77698,2573.2,2573.1,0.77701]
[1747588445930,3.2694,2573.4,2573.1,3.2078]
[1747588446239,8.603,2573.3,2573.2,2.39728]
[1747588446535,8.603,2573.3,2573.2,4.10138]
[1747588447436,9.37995,2573.3,2573.2,4.10138]
[1747588447639,9.37995,2573.3,2573.2,3.3244]
[1747588447843,8.603,2573.3,2573.2,4.10138]
[1747588448238,8.603,2573.3,2573.2,5.75998]
[1747588448438,10.2837,2573.4,2573.3,0.77695]
[1747588448639,8.603,2573.4,2573.3,2.52445]
[1747588449142,9.37992,2573.4,2573.3,2.52445]
[1747588449444,0.77692,2573.4,2573.3,2.52445]
[1747588450145,0.77692,2573.4,2573.3,3.65052505]
[1747588450444,10.99041,2573.5,2573.4,0.77692]
[1747588450643,8.602,2573.5,2573.4,2.52442]
[1747588450943,0.77688,2573.6,2573.5,0.77689]
[1747588451142,8.602,2573.6,2573.5,2.52438]
[1747588451537,0.77686,2573.6,2573.5,2.52438]
[1747588451945,11.12615,2573.7,2573.6,0.77686]
[1747588452142,11.12615,2573.7,2573.6,2.37866]
[1747588453050,11.12615,2573.7,2573.6,1.6018]
[1747588453541,11.12615,2573.7,2573.6,2.37866]
[1747588453937,11.12615,2573.7,2573.6,1.6018]
[1747588454143,1.7473,2573.7,2573.6,2.37866]
[1747588454348,0.77675,2574.0,2573.9,0.77675]
[1747588454548,0.77677,2573.9,2573.8,0.77678]
[1747588454743,0.77683,2573.7,2573.6,4.42283245]
[1747588455048,4.70564332,2574.1,2573.5,0.77689]
[1747588455049,0.77688,2573.6,2573.5,0.77689]
[1747588455348,0.77688,2573.6,2573.5,4.9718047]
[1747588455534,0.77688,2573.6,2573.5,4.1949147]
[1747588455934,2.39568,2573.6,2573.5,4.1949147]
[1747588456142,2.39568,2573.6,2573.5,5.32348142]
[1747588456547,2.39568,2573.6,2573.5,1.12856672]
[1747588457240,4.6768,2573.6,2573.3,1.14587274]
[1747588457553,0.77692,2573.4,2573.3,1.14587274]
[1747588457938,9.37892,2573.4,2573.3,1.14587274]
[1747588458134,12.43692,2573.4,2573.3,1.14587274]
[1747588459150,0.77707,2572.9,2572.8,5.13076274]
[1747588459453,13.60236,2573.4,2572.8,5.13076274]
[1747588459454,0.77706,2573.0,2572.8,6.79046274]
[1747588459651,0.77707,2572.9,2572.8,6.01337274]
[1747588459949,4.05827,2572.9,2572.8,4.35367274]
[1747588460153,7.11627,2572.9,2572.8,4.35367274]
[1747588460341,3.058,2572.9,2572.8,5.13077274]
[1747588460543,3.058,2572.9,2572.8,4.35367274]
[1747588460737,11.629,2572.9,2572.8,4.35367274]
[1747588461039,12.40607,2572.9,2572.8,4.35367274]
[1747588461242,9.34807,2572.9,2572.8,1.14587274]
[1747588462341,17.40607,2572.9,2572.8,1.14587274]
[1747588462746,19.03737,2572.9,2572.8,1.14587274]
[1747588463043,0.77726,2572.3,2572.2,4.50245294]
[1747588463454,4.8391,2572.6,2572.2,4.50245294]
[1747588463649,0.77726,2572.3,2572.2,4.50245294]
[1747588463842,9.34826,2572.3,2572.2,1.29465294]
[1747588464038,9.34826,2572.3,2572.2,2.92335294]
[1747588464251,9.34826,2572.3,2572.2,1.29465294]
[1747588464451,12.56086,2572.3,2572.2,1.29465294]
[1747588465155,0.77729,2572.2,2572.1,1e-08]
[1747588465350,2.36419,2572.2,2572.1,1e-08]
[1747588466154,5.42219,2572.2,2572.1,1e-08]
[1747588466453,13.62999,2572.2,2572.1,1e-08]
[1747588466756,0.77744,2571.7,2571.6,2.92335294]
[1747588467257,0.77738,2571.9,2571.7,0.77742]
[1747588467443,0.77736,2572.0,2571.8,2.50411]
[1747588467652,0.77736,2572.0,2571.8,2.50409]
[1747588467858,4.7947,2572.2,2571.8,1.7267]
[1747588467859,0.77738,2571.9,2571.8,1.7267]
[1747588469358,0.77744,2571.7,2571.6,1.29465294]
[1747588469656,0.77744,2571.7,2571.6,3.02135294]
[1747588469962,4.06182,2571.8,2571.6,3.02135294]
[1747588470256,4.06182,2571.8,2571.7,1.72]
[1747588470450,0.77747,2571.6,2571.5,4.8384]
[1747588470650,0.77747,2571.6,2571.5,6.5584]
[1747588471056,0.77747,2571.6,2571.5,1.72]
[1747588471057,9.35147,2571.6,2571.5,1.72]
[1747588471357,0.77756,2571.3,2571.2,3.3938]
[1747588471545,0.77755,2571.4,2571.2,5.89138]
[1747588471749,0.77755,2571.4,2571.3,1.72]
[1747588472148,3.2825,2571.5,2570.9,3.946]
[1747588472350,8.574,2571.4,2571.2,0.77759]
[1747588472552,9.35153,2571.4,2571.3,3.3882]
[1747588473055,0.77753,2571.4,2571.3,3.3882]
[1747588473261,0.77753,2571.4,2571.3,5.0593]
[1747588474457,0.77745,2571.7,2571.5,0.77748]
[1747588474664,9.35244,2571.7,2571.6,1.6726]
[1747588474963,11.04934,2571.7,2571.6,1.6726]
[1747588475859,0.77753,2571.4,2571.3,3.3393]
[1747588476459,0.77761,2571.2,2571.0,0.77764]
[1747588476663,0.77761,2571.2,2571.1,1.5942]
[1747588477155,0.77761,2571.2,2571.1,3.22]
[1747588480056,2.34251,2571.2,2571.1,3.22]
[1747588480456,0.77761,2571.2,2571.1,3.22]
[1747588480657,0.77761,2571.2,2571.1,3.99762]
[1747588480862,9.35358,2571.3,2571.1,3.99762]
[1747588481058,9.35358,2571.3,2571.2,1.6244]
[1747588481659,10.91848,2571.3,2571.2,1.6244]
[1747588483267,13.97648,2571.3,2571.2,1.6244]
[1747588484160,11.7838,2572.3,2571.2,22.59708889]
[1747588484360,14.24817,2572.3,2571.7,3.2078]
[1747588484563,13.4709,2572.3,2572.2,0.77729]
[1747588484765,11.7838,2572.3,2572.2,0.77729]
[1747588485152,3.2078,2572.3,2572.2,0.77729]
[1747588485557,0.77729,2572.2,2572.0,3.2078]
[1747588485757,3.08684332,2572.4,2572.1,1.7077]
[1747588485959,3.08684332,2572.4,2572.0,7.38358069]
[1747588486158,0.77727,2572.3,2572.1,2.485]
[1747588486359,0.77727,2572.3,2572.2,1.7077]
[1747588487768,11.04134,2572.4,2572.2,2.48499]
[1747588487955,0.77726,2572.3,2572.2,1.7077]
[1747588488158,0.77726,2572.3,2572.0,3.2078]
[1747588488464,0.77726,2572.3,2572.1,4.50875246]
[1747588488659,9.35424,2572.4,2572.1,4.50875246]
[1747588489368,0.77726,2572.3,2572.2,0.77727]
[1747588489569,9.35424,2572.4,2572.3,0.77726]
[1747588489767,9.35423,2572.4,2572.1,4.50875246]
[1747588489959,9.35425,2572.4,2572.1,4.50875246]
[1747588490159,9.35425,2572.4,2572.2,0.77726]
[1747588490469,8.577,2572.4,2572.3,0.77726]
[1747588490965,9.35423,2572.4,2572.3,0.77726]
[1747588491563,0.77723,2572.4,2572.3,0.77726]
[1747588492669,0.77726,2572.3,2572.2,0.77727]
[1747588492866,8.55,2572.5,2572.1,4.50875246]
[1747588493774,0.77725,2572.4,2572.1,4.50875246]
[1747588493969,0.77725,2572.4,2572.3,0.77726]
[1747588494175,0.77729,2572.2,2572.1,5.28605246]
[1747588494475,0.77729,2572.2,2572.1,4.50875246]
[1747588495678,0.77732,2572.1,2572.0,6.2658]
[1747588495876,12.49162,2572.1,2572.0,6.2658]
[1747588496375,12.49162,2572.1,2572.0,3.2078]
[1747588501781,0.77741,2571.8,2571.7,1.6427]
[1747588501972,0.77744,2571.7,2571.6,3.98526]
[1747588503073,0.77743,2571.8,2571.7,0.77743]
[1747588503374,0.77737,2572.0,2571.9,0.77737]
[1747588503576,0.77737,2572.0,2571.8,0.77738]
[1747588503878,0.77738,2571.9,2571.8,0.77741]
[1747588504177,3.2078,2572.2,2571.8,3.058]
[1747588504178,11.7568,2572.2,2571.8,3.058]
[1747588504379,0.77735,2572.1,2572.0,0.77733]
[1747588504576,3.2078,2572.2,2571.9,1.6389]
[1747588504577,0.77735,2572.0,2571.9,1.6389]
[1747588504769,0.77735,2572.0,2571.9,2.41628]
[1747588505072,0.77735,2572.0,2571.9,9.13196357]
[1747588505277,0.77735,2572.0,2571.9,3.058]
[1747588506165,0.77741,2571.8,2571.7,1.6031]
[1747588507672,0.77738,2571.9,2571.7,1.6031]
[1747588507973,0.77738,2571.9,2571.8,0.77739]
[1747588508179,0.77736,2572.0,2571.7,5.68967004]
[1747588508373,0.77736,2572.0,2571.8,0.77739]
[1747588508772,3.98509,2572.2,2571.7,14.22667004]
[1747588508973,0.77735,2572.0,2571.9,4.20645543]
[1747588509174,3.2078,2572.2,2571.9,3.83537]
[1747588509471,0.77736,2572.0,2571.9,3.058]
[1747588509981,0.77736,2572.0,2571.9,3.83538]
[1747588510182,1.9433,2572.1,2571.7,1.6031]
[1747588510382,0.77741,2571.8,2571.7,1.6031]
[1747588510980,0.77741,2571.8,2571.7,2.38054]
[1747588511179,0.77736,2572.0,2571.9,0.77736]
[1747588511379,0.77739,2571.9,2571.8,0.77739]
[1747588511579,0.77741,2571.8,2571.7,1.6031]
[1747588511783,0.77741,2571.8,2571.7,2.38054]
[1747588512075,0.77741,2571.8,2571.7,1.6031]
[1747588515274,0.77741,2571.8,2571.7,2.72221585]
[1747588515771,0.77741,2571.8,2571.7,1.11911585]
[1747588515977,4.05311,2571.8,2571.7,1.11911585]
[1747588516281,7.11111,2571.8,2571.7,1.11911585]
[1747588516483,0.77753,2571.4,2571.3,1.54621022]
[1747588518476,9.32753,2571.4,2571.3,1.54621022]
[1747588519184,15.59333,2571.4,2571.3,1.54621022]
[1747588519777,0.77765,2571.0,2570.9,4.8865]
[1747588520175,0.77765,2571.0,2570.9,1.6787]
[1747588524181,0.7778,2570.5,2570.4,8.3115259]
[1747588524380,3.1216,2570.9,2570.4,10.7388559]
[1747588524583,0.77775,2570.7,2570.5,0.7778]
[1747588524784,8.529,2570.8,2570.5,4.15770624]
[1747588524985,0.77774,2570.7,2570.5,4.93548624]
[1747588525186,0.77777,2570.6,2570.5,4.15770624]
[1747588525397,0.77777,2570.6,2570.5,1.6386]
[1747588526085,2.33647,2570.6,2570.5,1.6386]
[1747588526284,0.7778,2570.5,2570.4,4.3655259]
[1747588526482,5.15172,2571.3,2570.4,4.3655259]
[1747588526681,0.77764,2571.1,2570.7,3.2078]
[1747588526883,0.77765,2571.0,2570.8,3.99479]
[1747588527088,0.77765,2571.0,2570.8,8.41890358]
[1747588527795,0.77764,2571.1,2570.9,0.77768]
[1747588527991,0.77764,2571.1,2571.0,1.6395]
[1747588528194,1.5635,2571.2,2571.1,0.77762]
[1747588528395,8.529,2571.3,2571.0,5.86789754]
[1747588528693,0.77762,2571.1,2571.0,1.6395]
[1747588529992,2.36762,2571.1,2571.0,1.6395]
[1747588530887,0.77768,2570.9,2570.8,1.5785]
[1747588531390,0.77774,2570.7,2570.6,1.5602]
[1747588531688,8.529,2570.7,2570.4,3.2078]
[1747588531887,2.47509,2570.6,2570.4,3.98561]
[1747588532086,0.7778,2570.5,2570.4,3.2078]
[1747588532292,0.77783,2570.4,2570.3,1.1577259]
[1747588532694,0.77789,2570.2,2570.1,3.2078]
[1747588533097,0.7779,2570.2,2570.0,1.9356659]
[1747588533289,0.77792,2570.1,2570.0,1.1577259]
[1747588533990,2.35062,2570.1,2570.0,1.1577259]
[1747588534190,5.40862,2570.1,2570.0,1.1577259]
[1747588534793,24.13802,2570.1,2570.0,1.1577259]
[1747588535093,3.058,2570.1,2570.0,1.9356759]
[1747588535292,1.6716,2570.5,2570.4,0.77783]
[1747588535498,10.98712,2570.8,2570.5,0.77778]
[1747588535700,12.64783,2570.8,2570.5,0.77778]
[1747588535899,14.28893,2570.8,2570.5,0.77778]
[1747588536403,13.5112,2570.8,2570.2,4.23604564]
[1747588536699,0.77778,2570.6,2570.0,2.8028259]
[1747588536901,1.6234,2570.5,2570.0,2.8028259]
[1747588537105,1.6234,2570.5,2570.4,0.77783]
[1747588537494,12.60953,2570.8,2570.1,9.42376422]
[1747588537804,1.6234,2570.7,2570.6,0.77776]
[1747588538205,3.3018,2570.8,2570.7,0.77774]
[1747588538395,11.8328,2570.8,2570.7,0.77774]
[1747588538695,12.61051,2570.8,2570.6,0.77776]
[1747588538994,12.61051,2570.8,2570.6,0.77774]
[1747588539194,11.8328,2570.8,2570.5,1.5736]
[1747588539400,12.61051,2570.8,2570.6,0.77775]
[1747588539705,14.23391,2570.8,2570.6,0.77775]
[1747588539903,0.7778,2570.5,2570.4,3.2078]
[1747588540206,0.77792,2570.2,2570.0,1.89411282]
[1747588540401,0.77792,2570.1,2570.0,1.11617282]
[1747588540702,4.14792,2570.1,2570.0,1.11617282]
[1747588541296,0.77798,2570.0,2569.8,1.5736]
[1747588541496,3.2078,2570.6,2570.0,1.94485]
[1747588541699,0.77782,2570.5,2570.3,0.77784]
[1747588542009,8.532,2570.4,2570.3,0.77786]
[1747588542203,8.532,2570.4,2569.8,13.2984]
[1747588542204,0.7779,2570.2,2569.8,13.2984]
[1747588542504,4.7873,2570.3,2569.9,4.33244817]
[1747588542804,0.7779,2570.2,2570.0,0.77795]
[1747588543007,0.77792,2570.1,2570.0,0.77795]
[1747588543208,1.6654,2570.2,2570.1,0.77792]
[1747588543501,1.6654,2570.2,2569.8,4.7814]